[Event "ONJK U25"]
[Site "Enschede, Netherlands"]
[Date "2022.08.10"]
[Round "3.1"]
[White "Baselmans, Luuk"]
[Black "Merkon, Oseb"]
[Result "1-0"]
[TimeControl "90min + 30sec/move"]
[WhiteElo "2256"]
[BlackElo "1954"]

1. e4 {[%clk 01:30:57]} {[%emt 00:00:02]} c5 {[%clk 01:30:59]} {[%emt
00:00:02]} 2. Nf3 {[%clk 01:31:19]} {[%emt 00:00:08]} Nc6 {[%clk 01:31:27]}
{[%emt 00:00:03]} 3. Bb5 {[%clk 01:31:39]} {[%emt 00:00:09]} Nf6 {[%clk
01:30:57]} {[%emt 00:01:00]} 4. e5 {[%clk 01:30:23]} {[%emt 00:01:46]} Nd5
{[%clk 01:30:57]} {[%emt 00:00:30]} 5. Nc3 {[%clk 01:30:09]} {[%emt 00:00:44]}
Nxc3 {[%clk 01:28:06]} {[%emt 00:03:21]} 6. dxc3 {[%clk 01:30:13]} {[%emt
00:00:26]} d5 {[%clk 01:28:13]} {[%emt 00:00:24]} 7. exd6 {[%clk 01:29:10]}
{[%emt 00:01:33]} exd6 {[%clk 01:26:53]} {[%emt 00:01:50]} 8. Bf4 {[%clk
01:25:46]} {[%emt 00:03:53]} a6 {[%clk 01:21:05]} {[%emt 00:06:19]} 9. Bc4
{[%clk 01:20:33]} {[%emt 00:05:43]} Be6 {[%clk 01:10:37]} {[%emt 00:10:58]} 10.
Bxe6 {[%clk 01:16:49]} {[%emt 00:04:13]} fxe6 {[%clk 01:11:03]} {[%emt
00:00:05]} 11. Qe2 {[%clk 01:10:37]} {[%emt 00:06:42]} Qd7 {[%clk 01:08:04]}
{[%emt 00:03:30]} 12. O-O-O {[%clk 01:10:46]} {[%emt 00:00:20]} O-O-O {[%clk
01:05:49]} {[%emt 00:02:45]} 13. Rhe1 {[%clk 01:10:33]} {[%emt 00:00:43]} Re8
{[%clk 01:04:33]} {[%emt 00:01:47]} 14. Kb1 {[%clk 01:03:13]} {[%emt 00:07:50]}
e5 {[%clk 00:59:38]} {[%emt 00:05:25]} 15. Bg3 {[%clk 01:02:55]} {[%emt
00:00:47]} Qf5 {[%clk 00:55:27]} {[%emt 00:04:40]} 16. Qc4 {[%clk 00:51:32]}
{[%emt 00:11:54]} g5 {[%clk 00:49:05]} {[%emt 00:06:52]} 17. Nd2 {[%clk
00:49:41]} {[%emt 00:02:21]} h5 {[%clk 00:45:27]} {[%emt 00:04:09]} 18. h4
{[%clk 00:46:25]} {[%emt 00:03:46]} g4 {[%clk 00:40:43]} {[%emt 00:05:14]} 19.
Ne4 {[%clk 00:43:57]} {[%emt 00:02:58]} Rh6 {[%clk 00:40:18]} {[%emt 00:00:55]}
20. Rd5 {[%clk 00:39:41]} {[%emt 00:04:46]} Qe6 {[%clk 00:37:23]} {[%emt
00:03:25]} 21. Red1 {[%clk 00:39:50]} {[%emt 00:00:21]} b5 {[%clk 00:22:36]}
{[%emt 00:15:17]} 22. Qe2 {[%clk 00:35:03]} {[%emt 00:05:16]} Nd4 {[%clk
00:21:06]} {[%emt 00:02:00]} 23. cxd4 {[%clk 00:35:27]} {[%emt 00:00:06]} Qxd5
{[%clk 00:19:13]} {[%emt 00:02:23]} 24. dxc5 {[%clk 00:35:50]} {[%emt
00:00:07]} Qc4 {[%clk 00:18:43]} {[%emt 00:01:01]} 25. Qe3 {[%clk 00:32:29]}
{[%emt 00:03:50]} Ree6 {[%clk 00:10:41]} {[%emt 00:08:32]} 26. b3 {[%clk
00:27:45]} {[%emt 00:05:14]} Qb4 {[%clk 00:10:58]} {[%emt 00:00:13]} 27. c3
{[%clk 00:27:42]} {[%emt 00:00:33]} Qa5 {[%clk 00:10:59]} {[%emt 00:00:29]} 28.
cxd6 {[%clk 00:27:54]} {[%emt 00:00:17]} Bxd6 {[%clk 00:08:19]} {[%emt
00:03:10]} 29. Qa7 {[%clk 00:28:08]} {[%emt 00:00:16]} Qc7 {[%clk 00:01:06]}
{[%emt 00:07:43]} 30. Nxd6+ {[%clk 00:28:14]} {[%emt 00:00:25]} Rxd6 {[%clk
00:01:28]} {[%emt 00:00:09]} 31. Qxc7+ {[%clk 00:28:38]} {[%emt 00:00:06]} Kxc7
{[%clk 00:01:53]} {[%emt 00:00:05]} 32. Bxe5 {[%clk 00:29:01]} {[%emt
00:00:06]} Kc6 {[%clk 00:01:55]} {[%emt 00:00:28]} 33. Rxd6+ {[%clk 00:29:22]}
{[%emt 00:00:08]} Rxd6 {[%clk 00:02:20]} {[%emt 00:00:06]} 34. Bxd6 {[%clk
00:29:47]} {[%emt 00:00:05]} Kxd6 {[%clk 00:02:45]} {[%emt 00:00:05]} 35. Kc2
{[%clk 00:30:11]} {[%emt 00:00:06]} 1-0

[Event "ONJK U25"]
[Site "Enschede, Netherlands"]
[Date "2022.08.10"]
[Round "3.2"]
[White "Heskes, Johan"]
[Black "Boudry, William"]
[Result "0-1"]
[TimeControl "90min + 30sec/move"]
[WhiteElo "1566"]
[BlackElo "2115"]

1. d4 {[%clk 01:30:58]} {[%emt 00:00:02]} e6 {[%clk 01:30:44]} {[%emt
00:00:16]} 2. c4 {[%clk 01:31:20]} {[%emt 00:00:07]} Nf6 {[%clk 01:30:54]}
{[%emt 00:00:21]} 3. Nc3 {[%clk 01:31:42]} {[%emt 00:00:07]} Bb4 {[%clk
01:31:11]} {[%emt 00:00:13]} 4. Bf4 {[%clk 01:31:39]} {[%emt 00:00:33]} O-O
{[%clk 01:31:13]} {[%emt 00:00:28]} 5. e3 {[%clk 01:31:59]} {[%emt 00:00:09]}
d6 {[%clk 01:31:09]} {[%emt 00:00:34]} 6. a3 {[%clk 01:30:52]} {[%emt
00:01:38]} Bxc3+ {[%clk 01:31:10]} {[%emt 00:00:29]} 7. bxc3 {[%clk 01:30:56]}
{[%emt 00:00:25]} Qe7 {[%clk 01:31:24]} {[%emt 00:00:17]} 8. Nf3 {[%clk
01:29:14]} {[%emt 00:02:12]} Nc6 {[%clk 01:29:42]} {[%emt 00:02:12]} 9. Be2
{[%clk 01:23:17]} {[%emt 00:06:27]} e5 {[%clk 01:29:02]} {[%emt 00:01:10]} 10.
Bg5 {[%clk 01:23:31]} {[%emt 00:00:15]} h6 {[%clk 01:24:49]} {[%emt 00:04:43]}
11. Bxf6 {[%clk 01:20:38]} {[%emt 00:03:24]} Qxf6 {[%clk 01:25:13]} {[%emt
00:00:05]} 12. O-O {[%clk 01:20:57]} {[%emt 00:00:11]} Re8 {[%clk 01:24:50]}
{[%emt 00:00:53]} 13. Nd2 {[%clk 01:16:59]} {[%emt 00:04:28]} Qg6 {[%clk
01:18:00]} {[%emt 00:07:20]} 14. Kh1 {[%clk 01:12:41]} {[%emt 00:04:48]} Bf5
{[%clk 01:14:24]} {[%emt 00:04:06]} 15. Bh5 {[%clk 01:08:44]} {[%emt 00:04:27]}
Qh7 {[%clk 01:08:38]} {[%emt 00:06:16]} 16. d5 {[%clk 01:07:18]} {[%emt
00:01:57]} Na5 {[%clk 01:06:29]} {[%emt 00:02:39]} 17. Re1 {[%clk 01:05:05]}
{[%emt 00:02:43]} Bc2 {[%clk 01:00:45]} {[%emt 00:06:14]} 18. Qc1 {[%clk
01:03:26]} {[%emt 00:02:08]} Bd3 {[%clk 01:00:21]} {[%emt 00:00:54]} 19. Qb2
{[%clk 01:01:33]} {[%emt 00:02:24]} b6 {[%clk 00:58:52]} {[%emt 00:01:59]} 20.
Qb4 {[%clk 01:00:16]} {[%emt 00:01:46]} Qf5 {[%clk 00:59:00]} {[%emt 00:00:21]}
21. Be2 {[%clk 00:57:27]} {[%emt 00:03:20]} Bxe2 {[%clk 00:55:16]} {[%emt
00:04:14]} 22. Rxe2 {[%clk 00:57:48]} {[%emt 00:00:09]} Qd3 {[%clk 00:55:42]}
{[%emt 00:00:04]} 23. Rae1 {[%clk 00:57:48]} {[%emt 00:00:30]} e4 {[%clk
00:55:58]} {[%emt 00:00:14]} 24. Nb3 {[%clk 00:50:26]} {[%emt 00:07:53]} Nxc4
{[%clk 00:43:59]} {[%emt 00:12:28]} 25. Nd4 {[%clk 00:46:45]} {[%emt 00:04:11]}
Ne5 {[%clk 00:44:00]} {[%emt 00:00:28]} 26. Rc1 {[%clk 00:44:11]} {[%emt
00:03:05]} Qa6 {[%clk 00:37:42]} {[%emt 00:06:47]} 27. Ra1 {[%clk 00:41:45]}
{[%emt 00:02:58]} c5 {[%clk 00:37:27]} {[%emt 00:00:44]} 28. dxc6 {[%clk
00:41:43]} {[%emt 00:00:31]} Nxc6 {[%clk 00:37:52]} {[%emt 00:00:06]} 29. Qb5
{[%clk 00:41:50]} {[%emt 00:00:23]} Qxb5 {[%clk 00:37:11]} {[%emt 00:01:11]} 30.
Nxb5 {[%clk 00:42:11]} {[%emt 00:00:09]} Red8 {[%clk 00:37:25]} {[%emt
00:00:15]} 31. Rd2 {[%clk 00:42:11]} {[%emt 00:00:31]} d5 {[%clk 00:37:29]}
{[%emt 00:00:26]} 32. Nc7 {[%clk 00:42:26]} {[%emt 00:00:16]} Rac8 {[%clk
00:37:47]} {[%emt 00:00:11]} 33. Nxd5 {[%clk 00:42:47]} {[%emt 00:00:09]} Kf8
{[%clk 00:37:09]} {[%emt 00:01:07]} 34. Rad1 {[%clk 00:42:57]} {[%emt
00:00:19]} Ne5 {[%clk 00:36:32]} {[%emt 00:01:07]} 35. Rd4 {[%clk 00:43:07]}
{[%emt 00:00:20]} Rc4 {[%clk 00:35:14]} {[%emt 00:01:48]} 36. g3 {[%clk
00:39:39]} {[%emt 00:03:59]} Nd3 {[%clk 00:32:11]} {[%emt 00:03:33]} 37. Rxc4
{[%clk 00:34:40]} {[%emt 00:05:29]} Nxf2+ {[%clk 00:32:15]} {[%emt 00:00:26]}
38. Kg2 {[%clk 00:35:04]} {[%emt 00:00:06]} Nxd1 {[%clk 00:32:39]} {[%emt
00:00:06]} 39. Rd4 {[%clk 00:35:25]} {[%emt 00:00:09]} Rxd5 {[%clk 00:33:04]}
{[%emt 00:00:05]} 0-1

[Event "ONJK U25"]
[Site "Enschede, Netherlands"]
[Date "2022.08.10"]
[Round "3.3"]
[White "Kruimer, Matthias"]
[Black "Van Roon, Sjoerd"]
[Result "0-1"]
[TimeControl "90min + 30sec/move"]
[WhiteElo "1766"]
[BlackElo "2310"]

1. e4 {[%clk 01:30:57]} {[%emt 00:00:02]} c5 {[%clk 01:30:57]} {[%emt
00:00:04]} 2. Nc3 {[%clk 01:31:21]} {[%emt 00:00:06]} Nc6 {[%clk 01:31:14]}
{[%emt 00:00:13]} 3. Bb5 {[%clk 01:31:34]} {[%emt 00:00:17]} Nd4 {[%clk
01:31:33]} {[%emt 00:00:10]} 4. Nf3 {[%clk 01:31:58]} {[%emt 00:00:06]} a6
{[%clk 01:31:56]} {[%emt 00:00:08]} 5. Bd3 {[%clk 01:32:14]} {[%emt 00:00:13]}
Nc6 {[%clk 01:32:18]} {[%emt 00:00:08]} 6. Nd5 {[%clk 01:31:39]} {[%emt
00:01:05]} e6 {[%clk 01:26:57]} {[%emt 00:05:52]} 7. O-O {[%clk 01:32:01]}
{[%emt 00:00:08]} Bd6 {[%clk 01:25:52]} {[%emt 00:01:36]} 8. Ne3 {[%clk
01:31:06]} {[%emt 00:01:25]} Nge7 {[%clk 01:23:36]} {[%emt 00:02:46]} 9. c3
{[%clk 01:27:06]} {[%emt 00:04:30]} Bc7 {[%clk 01:19:36]} {[%emt 00:04:30]} 10.
Bc2 {[%clk 01:20:15]} {[%emt 00:07:22]} d5 {[%clk 01:16:58]} {[%emt 00:03:08]}
11. d4 {[%clk 01:19:40]} {[%emt 00:01:05]} dxe4 {[%clk 01:08:26]} {[%emt
00:09:02]} 12. Bxe4 {[%clk 01:20:01]} {[%emt 00:00:08]} cxd4 {[%clk 01:08:55]}
{[%emt 00:00:02]} 13. cxd4 {[%clk 01:20:13]} {[%emt 00:00:18]} Nd5 {[%clk
01:06:16]} {[%emt 00:03:09]} 14. Nxd5 {[%clk 01:13:58]} {[%emt 00:06:45]} exd5
{[%clk 01:06:42]} {[%emt 00:00:04]} 15. Bc2 {[%clk 01:12:32]} {[%emt 00:01:56]}
O-O {[%clk 01:06:03]} {[%emt 00:01:08]} 16. Qd3 {[%clk 01:09:28]} {[%emt
00:03:35]} g6 {[%clk 01:05:57]} {[%emt 00:00:37]} 17. Bd2 {[%clk 00:49:38]}
{[%emt 00:20:19]} Bf5 {[%clk 01:01:00]} {[%emt 00:05:26]} 18. Qc3 {[%clk
00:44:13]} {[%emt 00:05:56]} Be4 {[%clk 00:57:34]} {[%emt 00:03:56]} 19. Bxe4
{[%clk 00:35:14]} {[%emt 00:09:28]} dxe4 {[%clk 00:58:02]} {[%emt 00:00:04]} 20.
Ng5 {[%clk 00:35:05]} {[%emt 00:00:38]} Qd5 {[%clk 00:50:44]} {[%emt 00:07:47]}
21. Rfe1 {[%clk 00:25:48]} {[%emt 00:09:48]} Rae8 {[%clk 00:44:59]} {[%emt
00:06:15]} 22. Nh3 {[%clk 00:20:49]} {[%emt 00:05:28]} Ba5 {[%clk 00:42:45]}
{[%emt 00:02:44]} 23. Qe3 {[%clk 00:16:08]} {[%emt 00:05:11]} Bxd2 {[%clk
00:42:42]} {[%emt 00:00:34]} 24. Qxd2 {[%clk 00:16:33]} {[%emt 00:00:04]} Qxd4
{[%clk 00:42:26]} {[%emt 00:00:46]} 25. Qh6 {[%clk 00:16:04]} {[%emt 00:00:59]}
Qg7 {[%clk 00:40:13]} {[%emt 00:02:43]} 26. Qh4 {[%clk 00:14:35]} {[%emt
00:01:59]} f5 {[%clk 00:39:18]} {[%emt 00:01:25]} 27. Rad1 {[%clk 00:13:21]}
{[%emt 00:01:45]} Rd8 {[%clk 00:31:38]} {[%emt 00:08:10]} 28. Ng5 {[%clk
00:13:03]} {[%emt 00:00:48]} Qe7 {[%clk 00:30:58]} {[%emt 00:01:10]} 29. Qg3
{[%clk 00:11:25]} {[%emt 00:02:08]} Rxd1 {[%clk 00:19:09]} {[%emt 00:12:19]} 30.
Rxd1 {[%clk 00:11:40]} {[%emt 00:00:15]} h6 {[%clk 00:19:15]} {[%emt 00:00:23]}
31. Qb3+ {[%clk 00:10:28]} {[%emt 00:01:42]} Kh8 {[%clk 00:19:39]} {[%emt
00:00:07]} 32. Ne6 {[%clk 00:08:26]} {[%emt 00:02:32]} Rf6 {[%clk 00:15:42]}
{[%emt 00:04:26]} 33. Nf4 {[%clk 00:06:48]} {[%emt 00:02:08]} Rd6 {[%clk
00:16:05]} {[%emt 00:00:08]} 34. Qc3+ {[%clk 00:04:46]} {[%emt 00:02:32]} Kh7
{[%clk 00:16:18]} {[%emt 00:00:16]} 35. Nd5 {[%clk 00:04:23]} {[%emt 00:00:54]}
Qf7 {[%clk 00:13:26]} {[%emt 00:03:21]} 36. Qc5 {[%clk 00:04:29]} {[%emt
00:00:24]} Rd8 {[%clk 00:12:44]} {[%emt 00:01:12]} 37. h3 {[%clk 00:04:02]}
{[%emt 00:00:57]} Qe6 {[%clk 00:07:36]} {[%emt 00:05:39]} 38. b3 {[%clk
00:01:58]} {[%emt 00:02:34]} Kg7 {[%clk 00:05:10]} {[%emt 00:02:55]} 39. Ne3
{[%clk 00:00:43]} {[%emt 00:01:45]} Rxd1+ {[%clk 00:03:50]} {[%emt 00:01:50]}
40. Nxd1 {[%clk 00:01:12]} Qd7 {[%clk 00:04:17]} {[%emt 00:00:04]} 41. Ne3
{[%clk 00:01:06]} {[%emt 00:00:36]} Qd4 {[%clk 00:04:35]} {[%emt 00:00:12]} 42.
Qc2 {[%clk 00:01:11]} {[%emt 00:00:25]} f4 {[%clk 00:04:27]} {[%emt 00:00:38]}
43. Nc4 {[%clk 00:01:31]} {[%emt 00:00:10]} Nb4 {[%clk 00:04:34]} {[%emt
00:00:23]} 44. Qc1 {[%clk 00:01:20]} {[%emt 00:00:41]} Qxf2+ {[%clk 00:04:57]}
{[%emt 00:00:07]} 45. Kh1 {[%clk 00:01:33]} {[%emt 00:00:17]} Nd5 {[%emt
00:01:49]} 46. Qa1+ {[%clk 00:01:40]} Kh7 {[%clk 00:04:06]} {[%emt 00:00:25]}
47. Qd1 {[%clk 00:01:32]} {[%emt 00:00:37]} f3 {[%clk 00:03:42]} {[%emt
00:00:54]} 48. Ne3 {[%clk 00:00:50]} {[%emt 00:01:13]} fxg2+ {[%clk 00:04:04]}
{[%emt 00:00:07]} 49. Nxg2 {[%clk 00:01:11]} {[%emt 00:00:10]} Qxg2+ {[%clk
00:04:32]} {[%emt 00:00:02]} 50. Kxg2 {[%clk 00:01:32]} {[%emt 00:00:09]} Ne3+
{[%clk 00:04:59]} {[%emt 00:00:02]} 0-1

[Event "ONJK U25"]
[Site "Enschede, Netherlands"]
[Date "2022.08.10"]
[Round "3.4"]
[White "Yee, Fong You"]
[Black "Nijdam, Brian"]
[Result "0-1"]
[TimeControl "90min + 30sec/move"]
[WhiteElo "981"]
[BlackElo "1749"]

1. e4 {[%clk 01:30:55]} {[%emt 00:00:04]} c5 {[%clk 01:30:56]} {[%emt
00:00:04]} 2. c3 {[%clk 01:31:17]} {[%emt 00:00:08]} Nf6 {[%clk 01:31:04]}
{[%emt 00:00:23]} 3. d3 {[%clk 01:29:51]} {[%emt 00:01:56]} d5 {[%clk
01:30:35]} {[%emt 00:00:59]} 4. Be2 {[%clk 01:27:28]} {[%emt 00:02:53]} dxe4
{[%clk 01:29:39]} {[%emt 00:01:26]} 5. d4 {[%clk 01:27:13]} {[%emt 00:00:45]}
cxd4 {[%clk 01:29:57]} {[%emt 00:00:13]} 6. cxd4 {[%clk 01:27:27]} {[%emt
00:00:16]} Nc6 {[%clk 01:30:08]} {[%emt 00:00:20]} 7. Be3 {[%clk 01:26:39]}
{[%emt 00:01:17]} e5 {[%clk 01:28:44]} {[%emt 00:01:53]} 8. dxe5 {[%clk
01:23:46]} {[%emt 00:03:22]} Qxd1+ {[%clk 01:29:04]} {[%emt 00:00:10]} 9. Bxd1
{[%clk 01:23:58]} {[%emt 00:00:18]} Nxe5 {[%clk 01:29:22]} {[%emt 00:00:11]} 10.
Nc3 {[%clk 01:24:11]} {[%emt 00:00:19]} Bb4 {[%clk 01:25:26]} {[%emt 00:04:25]}
11. Bd4 {[%clk 01:22:27]} {[%emt 00:02:15]} Nd3+ {[%clk 01:21:41]} {[%emt
00:04:13]} 12. Ke2 {[%clk 01:20:29]} {[%emt 00:02:30]} Nf4+ {[%clk 01:16:36]}
{[%emt 00:05:34]} 13. Kf1 {[%clk 01:17:36]} {[%emt 00:03:24]} Be6 {[%clk
01:11:40]} {[%emt 00:05:25]} 14. Bxf6 {[%clk 01:13:38]} {[%emt 00:04:28]} gxf6
{[%clk 01:11:58]} {[%emt 00:00:12]} 15. Nxe4 {[%clk 01:13:53]} {[%emt
00:00:14]} Bc4+ {[%clk 01:07:32]} {[%emt 00:04:56]} 16. Be2 {[%clk 01:09:13]}
{[%emt 00:05:12]} Nxe2 {[%clk 01:07:27]} {[%emt 00:00:35]} 17. Nxe2 {[%clk
01:08:55]} {[%emt 00:00:48]} O-O-O {[%clk 01:06:08]} {[%emt 00:01:49]} 18. g4
{[%clk 01:06:36]} {[%emt 00:02:48]} Kb8 {[%clk 01:04:46]} {[%emt 00:01:53]} 19.
Rg1 {[%clk 00:53:37]} {[%emt 00:13:29]} Rhe8 {[%clk 01:03:10]} {[%emt
00:02:06]} 20. f3 {[%clk 00:50:21]} {[%emt 00:03:46]} Rd3 {[%clk 00:51:26]}
{[%emt 00:12:14]} 21. Rg3 {[%clk 00:45:52]} {[%emt 00:05:00]} Re3 {[%clk
00:51:07]} {[%emt 00:00:48]} 22. Kf2 {[%clk 00:41:01]} {[%emt 00:05:20]} Rxe2+
{[%clk 00:51:16]} {[%emt 00:00:22]} 0-1

[Event "ONJK U25"]
[Site "Enschede, Netherlands"]
[Date "2022.08.10"]
[Round "3.5"]
[White "Meulenkolk, Jan-Geert"]
[Black "Andringa, Jibbe"]
[Result "0-1"]
[TimeControl "90min + 30sec/move"]
[WhiteElo "1681"]
[BlackElo "1000"]

1. e4 {[%clk 01:30:57]} {[%emt 00:00:02]} c5 {[%clk 01:30:56]} {[%emt
00:00:04]} 2. Nf3 {[%clk 01:31:22]} {[%emt 00:00:04]} Nc6 {[%clk 01:31:12]}
{[%emt 00:00:15]} 3. d4 {[%clk 01:31:33]} {[%emt 00:00:19]} cxd4 {[%clk
01:31:34]} {[%emt 00:00:06]} 4. Nxd4 {[%clk 01:31:59]} {[%emt 00:00:06]} e5
{[%clk 01:31:47]} {[%emt 00:00:17]} 5. Nb5 {[%clk 01:31:53]} {[%emt 00:00:36]}
Bc5 {[%clk 01:31:21]} {[%emt 00:00:56]} 6. Nd6+ {[%clk 01:29:57]} {[%emt
00:02:26]} Bxd6 {[%clk 01:31:04]} {[%emt 00:00:45]} 7. Qxd6 {[%clk 01:30:05]}
{[%emt 00:00:24]} Qe7 {[%clk 01:26:06]} {[%emt 00:05:28]} 8. Qd1 {[%clk
01:25:56]} {[%emt 00:04:38]} Nf6 {[%clk 01:24:23]} {[%emt 00:02:14]} 9. Nc3
{[%clk 01:25:02]} {[%emt 00:01:24]} O-O {[%clk 01:23:06]} {[%emt 00:01:47]} 10.
Be2 {[%clk 01:19:31]} {[%emt 00:06:01]} d6 {[%clk 01:20:12]} {[%emt 00:03:24]}
11. O-O {[%clk 01:19:25]} {[%emt 00:00:36]} Be6 {[%clk 01:17:29]} {[%emt
00:03:13]} 12. Be3 {[%clk 01:14:18]} {[%emt 00:05:38]} a6 {[%clk 01:13:51]}
{[%emt 00:04:08]} 13. Nd5 {[%clk 01:12:46]} {[%emt 00:02:02]} Bxd5 {[%clk
01:13:00]} {[%emt 00:01:18]} 14. exd5 {[%clk 01:12:32]} {[%emt 00:00:47]} Nd4
{[%clk 01:10:03]} {[%emt 00:03:27]} 15. Bxd4 {[%clk 01:03:07]} {[%emt
00:09:55]} exd4 {[%clk 01:07:19]} {[%emt 00:03:12]} 16. Re1 {[%clk 01:02:48]}
{[%emt 00:00:50]} Qc7 {[%clk 01:01:33]} {[%emt 00:06:17]} 17. Qxd4 {[%clk
00:56:28]} {[%emt 00:06:49]} Qxc2 {[%clk 00:58:41]} {[%emt 00:03:21]} 18. Bd3
{[%clk 00:51:33]} {[%emt 00:05:27]} Qc7 {[%clk 00:53:53]} {[%emt 00:05:18]} 19.
Re3 {[%clk 00:46:51]} {[%emt 00:05:11]} Rfe8 {[%clk 00:49:43]} {[%emt
00:04:42]} 20. Rg3 {[%clk 00:40:47]} {[%emt 00:06:32]} Qe7 {[%clk 00:47:28]}
{[%emt 00:02:47]} 21. Bxh7+ {[%clk 00:30:30]} {[%emt 00:10:46]} Kxh7 {[%clk
00:46:15]} {[%emt 00:01:39]} 22. Qh4+ {[%clk 00:29:34]} {[%emt 00:01:30]} Kg8
{[%clk 00:45:15]} {[%emt 00:01:29]} 23. Re3 {[%clk 00:28:30]} {[%emt 00:01:34]}
Qd8 {[%clk 00:43:41]} {[%emt 00:02:05]} 24. Rh3 {[%clk 00:24:19]} {[%emt
00:04:40]} Kf8 {[%clk 00:42:20]} {[%emt 00:01:52]} 25. Rg3 {[%clk 00:19:50]}
{[%emt 00:04:59]} Ne4 {[%clk 00:36:41]} {[%emt 00:06:09]} 26. Qh8+ {[%clk
00:16:00]} {[%emt 00:04:20]} Ke7 {[%clk 00:36:57]} {[%emt 00:00:14]} 27. Qh4+
{[%clk 00:13:01]} {[%emt 00:03:29]} Kd7 {[%clk 00:35:19]} {[%emt 00:02:08]} 28.
Qg4+ {[%clk 00:12:01]} {[%emt 00:01:30]} Kc7 {[%clk 00:34:31]} {[%emt
00:01:17]} 29. Rc1+ {[%clk 00:10:06]} {[%emt 00:02:25]} Kb8 {[%clk 00:32:04]}
{[%emt 00:02:58]} 30. Re3 {[%clk 00:08:42]} {[%emt 00:01:54]} Nf6 {[%clk
00:28:14]} {[%emt 00:04:19]} 31. Qxg7 {[%clk 00:07:08]} {[%emt 00:02:04]} Rxe3
{[%clk 00:27:09]} {[%emt 00:01:34]} 32. fxe3 {[%clk 00:07:09]} {[%emt
00:00:31]} Qe7 {[%clk 00:25:01]} {[%emt 00:02:37]} 33. e4 {[%clk 00:05:20]}
{[%emt 00:02:21]} Ka7 {[%clk 00:23:25]} {[%emt 00:02:06]} 34. Qg5 {[%clk
00:05:03]} {[%emt 00:00:46]} Re8 {[%clk 00:23:00]} {[%emt 00:00:54]} 35. Qe3+
{[%clk 00:04:56]} {[%emt 00:00:39]} Kb8 {[%clk 00:22:23]} {[%emt 00:01:06]} 36.
Qb6 {[%clk 00:03:24]} {[%emt 00:02:03]} Qd8 {[%clk 00:19:52]} {[%emt 00:03:00]}
37. Qxd8+ {[%clk 00:03:12]} {[%emt 00:00:43]} Rxd8 {[%clk 00:20:15]} {[%emt
00:00:05]} 38. Rf1 {[%clk 00:03:12]} {[%emt 00:00:32]} Nxe4 {[%clk 00:19:16]}
{[%emt 00:01:16]} 39. Rxf7 {[%clk 00:03:38]} {[%emt 00:00:18]} Rc8 {[%clk
00:19:04]} {[%emt 00:00:41]} 0-1